{"text_format":"1","workbook":"xlsx","n_sheets":9,"sheets":["START","VYPOCTY","VYPOCTY18","VYPOCTY20","VÝSTUP","hraze 0","hraze 12","hraze 20","List1"],"not_rendered":{"charts":0,"images":0,"macros":1,"external_links":0,"defined_names":5,"comments":0,"pivot_tables":0},"unopened":[],"bounds":{"document_bytes":16777216,"sheet_cells":100000,"rows_first":2000,"rows_last":500,"rows_between":2000,"halvings":0,"cell_chars":16384,"cell_head_chars":4096},"cells_cut":0,"cells_raw":0,"read":"whole","date_system":"1900"}

{"sheet":"START","index":0,"n_rows":34,"n_cols":19,"rows_kept":34,"cut":false,"hidden":false,"merged":[]}
[]
[null,"Údržba hráze ",null,null,null,null,null,null,null,null,null,null,null,null,null,"Postup výpočtu"]
[]
[]
[]
[]
[]
[]
[]
[null,null,null,null,null,"sklon do 12°",null,"sklon do 20°",null,"sklon nad 20°",null,null,null,null,null,"1. Zadání rozsahu zpracované plochy podle sklonu a typu porostu"]
[null,null,null,null,null,null,null,null,null,null,null,null,"celková plocha",null,null,"     Ploch se zadává v m2"]
[null,"Zpracovaná plocha",null,null,null,"plocha v metrech",null,"plocha v metrech",null,"plocha v metrech",null,null,null,null,null,"2. Zadání přepravní vzdálenosti a rozsahu práce energetických prostředků a nakladačů"]
[null,null,"bylinný porost",null,null,null,null,null,null,null,null,null,{"$f":"F13+H13+J13","v":0},null,null,"3. Volba technologie pro jednotlivé sklony"]
[null,null,"bylinný porost a keře",null,null,null,null,null,null,null,null,null,{"$f":"F14+H14+J14","v":0},null,null,"4. na výstupním listě volba technologie dopravy a práce EP a nakládání"]
[null,null,"bylinný porost  a stromy",null,null,null,null,null,null,null,null,null,0,null,null,"5 Tisk výsledků"]
[null,null,"bylinný porost stromy a keře",null,null,null,null,null,null,null,null,null,0]
[null,null,"počet stromů ke kácení",null,null,null,null,null,null,null,null,null,0]
[null,null,"průměr pařezů"]
[null,null,"počet likvydovaných pařezů",null,null,null,null,null,null,null,null,null,0]
[null,null,null,null,null,null,null,null,null,null,null,null,null,null,null,"Realizační výstup výzkumného projektu č. QJ1220029 pod názvemvýzkum"]
[null,null,null,null,null,null,null,null,null,null,null,null,null,null,null," - Komplexní udržitelné systémy v zemědělství „KUS“"]
[null,null,"Přepravní vzdálenost na přepravu materiálu",null,null,null,null,null,null,null,null,null,null,null,null," „Zakládání a údržba porostů hrází rybníků s ohledem na jejich využití“,"]
[null,null,"Hodiny nasazení EP",null,null,null,null,null,null,null,null,null,null,null,null," financovaného MZe ČR Národní agenturou pro zemědělský "]
[null,null,"Hodiny nasazení nakladače"]
[]
[]
[]
[]
[]
[]
[]
[]
[]
[null,null,null,null,null,null,null,null,null,null,null,null,null,null,null,null,null,null,"©  Doc. Ing, Jan Červinka, CSc. Ing. Jiří Pospíšil, CSc. "]

{"sheet":"VYPOCTY","index":1,"n_rows":42,"n_cols":9,"rows_kept":42,"cut":false,"hidden":false,"merged":[]}
[]
[null,null,"Údržba hráze se sklonem do 12°"]
[null,null,"Zpracovaná plocha",null,null,null,"plocha v metrech"]
[null,null,null,"bylinný porost",null,null,{"$f":"START!F13","v":0}]
[null,null,null,"bylinný porost a keře",null,null,{"$f":"START!F14","v":0}]
[null,null,null,"bylinný porost  a stromy",null,null,{"$f":"START!F15","v":0}]
[null,null,null,"bylinný porost stromy a keře",null,null,{"$f":"START!F16","v":0}]
[null,null,null,"počet stromů ke kácení",null,null,{"$f":"START!F17","v":0}]
[null,null,null,"průměr pařezů",null,null,{"$f":"START!F18","v":0}]
[null,null,null,"počet likvydovaných pařezů",null,null,{"$f":"START!F19","v":0}]
[null,null,null,null,null,"náklad na m plochy"]
[null,null,null,null,null,null,"náklad na zpracovanou plochu"]
[null,null,"Sečení - jenom bylinný porost"]
[null,null,null,1,null,{"$f":"INDEX('hraze 0'!D2:D8,I14,1)","v":0},{"$f":"G4*F14","v":0},null,1]
[null,null,"Sečení - bylinný porost a keře",null,null,null,null,null,1]
[null,null,null,null,null,{"$f":"INDEX('hraze 0'!H2:H6,I16,1)","v":0},{"$f":"G5*F16","v":0},null,1]
[null,null,"Sečení - bylinný porost  a stromy",null,null,null,null,null,1]
[null,null,null,null,null,{"$f":"INDEX('hraze 0'!L2:L7,I18,1)","v":0},{"$f":"G6*F18","v":0},null,1]
[null,null,"Sečení - bylinný porost stromy a keře",null,null,null,null,null,1]
[null,null,null,null,null,{"$f":"INDEX('hraze 0'!P2:P7,I21,1)","v":0},{"$f":"G7*F20","v":0},null,1]
[null,null,null,null,null,null,null,null,1]
[null,null,"Shrnování posečené trávy ",null,null,null,null,null,1]
[null,null,null,null,null,{"$f":"INDEX('hraze 0'!P9:P11,I25,1)","v":0},{"$f":"F23*($G$4+$G$5+$G$6+$G$7)","v":0},null,1]
[null,null,"Sběr a odvoz posečené trávy ",null,null,null,null,null,1]
[null,null,null,null,null,{"$f":"INDEX('hraze 0'!P12:P14,I28,1)","v":0},{"$f":"F25*($G$4+$G$5+$G$6+$G$7)","v":0},null,1]
[null,null,null,null,null,null,null,null,1]
[null,null,"Likvidace křovin",null,null,null,null,null,1]
[null,null,null,null,null,{"$f":"INDEX('hraze 0'!P17:P19,I31,1)","v":0},{"$f":"F28*($G$5+$G$7)","v":0},null,1]
[null,null,"Likvidace stromů",null,null,null,null,null,1]
[null,null,null,null,null,{"$f":"INDEX('hraze 0'!P20:P25,I34,1)","v":0},{"$f":"G8*F30","v":0},null,1]
[null,null,"Likvidace pařezů",null,null,null,null,null,1]
[null,null,null,null,null,{"$f":"INDEX('hraze 0'!P26:P29,I37,1)","v":0},{"$f":"G9*F32*G10","v":0},null,1]
[null,null,null,null,null,null,null,null,1]
[null,null,"Setí trávy včetně osiva",null,null,null,null,null,1]
[null,null,null,null,null,{"$f":"INDEX('hraze 0'!P30:P31,I39,1)","v":0},{"$f":"F35*($G$4+$G$5+$G$6+$G$7)","v":0},null,1]
[null,null,null,null,null,null,null,null,1]
[null,null,null,null,null,null,null,null,1]
[null,null,null,null,null,null,null,null,1]
[null,null,null,null,null,null,null,null,1]
[null,null,null,null,null,null,null,null,1]
[null,null,null,null,null,null,null,null,1]
[null,null,"CELKOVÝ NÁKLAD NA ÚDRŽBU tohoto sklonu",null,null,null,{"$f":"SUM(G14:G41)","v":0}]

{"sheet":"VYPOCTY18","index":2,"n_rows":42,"n_cols":9,"rows_kept":42,"cut":false,"hidden":false,"merged":[]}
[]
[null,null,"Údržba hráze se sklonem nad 12°"]
[null,null,"Zpracovaná plocha",null,null,null,"plocha v metrech"]
[null,null,null,"bylinný porost",null,null,{"$f":"START!H13","v":0}]
[null,null,null,"bylinný porost a keře",null,null,{"$f":"START!H14","v":0}]
[null,null,null,"bylinný porost  a stromy",null,null,{"$f":"START!H15","v":0}]
[null,null,null,"bylinný porost stromy a keře",null,null,{"$f":"START!H16","v":0}]
[null,null,null,"počet stromů ke kácení",null,null,{"$f":"START!H17","v":0}]
[null,null,null,"průměr pařezů",null,null,{"$f":"START!H18","v":0}]
[null,null,null,"počet likvidovaných pařezů",null,null,{"$f":"START!H19","v":0}]
[null,null,null,null,null,"náklad na m plochy"]
[null,null,null,null,null,null,"náklad na zpracovanou plochu"]
[null,null,"Sečení - jenom bylinný porost"]
[null,null,null,1,null,{"$f":"INDEX('hraze 12'!D2:D6,I14,1)","v":0},{"$f":"G4*F14","v":0},null,1]
[null,null,"Sečení - bylinný porost a keře",null,null,null,null,null,1]
[null,null,null,null,null,{"$f":"INDEX('hraze 12'!H2:H6,I16,1)","v":0},{"$f":"G5*F16","v":0},null,1]
[null,null,"Sečení - bylinný porost  a stromy",null,null,null,null,null,1]
[null,null,null,null,null,{"$f":"INDEX('hraze 12'!L2:L7,I18,1)","v":0},{"$f":"G6*F18","v":0},null,1]
[null,null,"Sečení - bylinný porost stromy a keře",null,null,null,null,null,1]
[null,null,null,null,null,{"$f":"INDEX('hraze 12'!P2:P7,I21,1)","v":0},{"$f":"G7*F20","v":0},null,1]
[null,null,null,null,null,null,null,null,1]
[null,null,"Shrnování posečené trávy ",null,null,null,null,null,1]
[null,null,null,null,null,{"$f":"INDEX('hraze 12'!L7:L8,I23,1)","v":0},{"$f":"F23*($G$4+$G$5+$G$6+$G$7)","v":0},null,1]
[null,null,"Sběr a odvoz posečené trávy ",null,null,null,null,null,1]
[null,null,null,null,null,{"$f":"INDEX('hraze 12'!L11:L13,I25,1)","v":0},{"$f":"F25*($G$4+$G$5+$G$6+$G$7)","v":0},null,1]
[null,null,null,null,null,null,null,null,1]
[null,null,"Likvidace křovin",null,null,null,null,null,1]
[null,null,null,null,null,{"$f":"INDEX('hraze 12'!P11:P13,I28,1)","v":0},{"$f":"F28*($G$5+$G$7)","v":0},null,1]
[null,null,"Likvidace stromů",null,null,null,null,null,1]
[null,null,null,null,null,{"$f":"INDEX('hraze 12'!P14:P19,I30,1)","v":0},{"$f":"G8*F30","v":0},null,1]
[null,null,"Likvidace pařezů",null,null,null,null,null,1]
[null,null,null,null,null,{"$f":"INDEX('hraze 12'!P20:P24,I32,1)","v":0},{"$f":"G9*F32*G10","v":0},null,1]
[null,null,null,null,null,null,null,null,1]
[null,null,"Setí trávy včetně osiva",null,null,null,null,null,1]
[null,null,null,null,null,{"$f":"INDEX('hraze 12'!P24:P25,I35,1)","v":0},{"$f":"F35*($G$4+$G$5+$G$6+$G$7)","v":0},null,1]
[null,null,null,null,null,null,null,null,1]
[null,null,null,null,null,null,null,null,1]
[null,null,null,null,null,null,null,null,1]
[null,null,null,null,null,null,null,null,1]
[null,null,null,null,null,null,null,null,1]
[null,null,null,null,null,null,null,null,1]
[null,null,"CELKOVÝ NÁKLAD NA ÚDRŽBU HRÁZE",null,null,null,{"$f":"SUM(G14:G41)","v":0}]

{"sheet":"VYPOCTY20","index":3,"n_rows":42,"n_cols":9,"rows_kept":42,"cut":false,"hidden":false,"merged":[]}
[]
[null,null,"Údržba hráze se sklonem nad 20°"]
[null,null,"Zpracovaná plocha",null,null,null,"plocha v metrech"]
[null,null,null,"bylinný porost",null,null,{"$f":"START!J13","v":0}]
[null,null,null,"bylinný porost a keře",null,null,{"$f":"START!J14","v":0}]
[null,null,null,"bylinný porost  a stromy",null,null,{"$f":"START!J15","v":0}]
[null,null,null,"bylinný porost stromy a keře",null,null,{"$f":"START!J16","v":0}]
[null,null,null,"počet stromů ke kácení",null,null,{"$f":"START!J17","v":0}]
[null,null,null,"průměr pařezů",null,null,{"$f":"START!J18","v":0}]
[null,null,null,"počet likvydovaných pařezů",null,null,{"$f":"START!J19","v":0}]
[null,null,null,null,null,"náklad na m plochy","náklad na zpracovanou plochu"]
[]
[null,null,"Sečení - jenom bylinný porost"]
[null,null,null,null,null,{"$f":"INDEX('hraze 20'!D2:D5,I14,1)","v":0},{"$f":"G4*F14","v":0},null,1]
[null,null,"Sečení - bylinný porost a keře",null,null,null,null,null,1]
[null,null,null,null,null,{"$f":"INDEX('hraze 20'!H2:H5,I16,1)","v":0},{"$f":"G5*F16","v":0},null,1]
[null,null,"Sečení - bylinný porost  a stromy",null,null,null,null,null,1]
[null,null,null,null,null,{"$f":"INDEX('hraze 20'!L2:L5,I18,1)","v":0},{"$f":"G6*F18","v":0},null,1]
[null,null,"Sečení - bylinný porost stromy a keře",null,null,null,null,null,1]
[null,null,null,null,null,{"$f":"INDEX('hraze 20'!P2:P5,I20,1)","v":0},{"$f":"G7*F20","v":0},null,1]
[null,null,null,null,null,null,null,null,1]
[null,null,"Shrnování posečené trávy ",null,null,null,null,null,1]
[null,null,null,null,null,{"$f":"INDEX('hraze 20'!P6:P7,I23,1)","v":0},{"$f":"F23*($G$4+$G$5+$G$6+$G$7)","v":0},null,1]
[null,null,"Sběr a odvoz posečené trávy ",null,null,null,null,null,1]
[null,null,null,null,null,{"$f":"INDEX('hraze 20'!L10:L12,I25,1)","v":0},{"$f":"F25*($G$4+$G$5+$G$6+$G$7)","v":0},null,1]
[null,null,null,null,null,null,null,null,1]
[null,null,"Likvidace křovin",null,null,null,null,null,1]
[null,null,null,null,null,{"$f":"INDEX('hraze 20'!P10:P12,I28,1)","v":0},{"$f":"F28*($G$5+$G$7)","v":0},null,1]
[null,null,"Likvidace stromů",null,null,null,null,null,1]
[null,null,null,null,null,{"$f":"INDEX('hraze 20'!P13:P19,I30,1)","v":0},{"$f":"G8*F30","v":0},null,1]
[null,null,"Likvidace pařezů",null,null,null,null,null,1]
[null,null,null,null,null,{"$f":"INDEX('hraze 12'!P20:P23,I32,1)","v":0},{"$f":"G9*F32*G10","v":0},null,1]
[null,null,null,null,null,null,null,null,1]
[null,null,"Setí trávy včetně osiva",null,null,null,null,null,1]
[null,null,null,null,null,{"$f":"INDEX('hraze 20'!P20:P21,I35,1)","v":0},{"$f":"F35*($G$4+$G$5+$G$6+$G$7)","v":0},null,1]
[null,null,null,null,null,null,null,null,1]
[null,null,null,null,null,null,null,null,1]
[null,null,null,null,null,null,null,null,1]
[null,null,null,null,null,null,null,null,1]
[null,null,null,null,null,null,null,null,1]
[null,null,null,null,null,null,null,null,1]
[null,null,"CELKOVÝ NÁKLAD NA ÚDRŽBU HRÁZE",null,null,null,{"$f":"SUM(G14:G41)","v":0}]

{"sheet":"VÝSTUP","index":4,"n_rows":41,"n_cols":16,"rows_kept":41,"cut":false,"hidden":false,"merged":[]}
[]
["VÝSLEDKY"]
[null,null,"Údržba hráze se sklonem do 12°",null,null,null,null,null,null,{"$f":"VYPOCTY!G42","v":0}]
[]
[null,null,"Údržba hráze se sklonem do 20°",null,null,null,null,null,null,{"$f":"VYPOCTY18!G42","v":0}]
[]
[null,null,"Údržba hráze se sklonem nad 20°",null,null,null,null,null,null,{"$f":"VYPOCTY20!G42","v":0}]
[]
[]
[]
[]
[null,null,"Doplňkové náklady "]
[]
[null,null,"Doprava technologická (podle km)",null,null,null,null,null,null,null,null,1]
[null,null,null,null,null,null,null,null,null,null,null,1]
[null,null,null,null,null,null,null,null,null,{"$f":"INDEX(List1!P21:P26,L16,1)*START!H22","v":0},null,1]
[null,null,null,null,null,null,null,null,null,null,null,1]
[null,null,"Náklady na práci energetických prostředků (h)",null,null,null,null,null,null,null,null,1]
[null,null,null,null,null,null,null,null,null,null,null,1]
[null,null,null,null,null,null,null,null,null,{"$f":"INDEX(List1!P5:P17,L20,1)*START!H23","v":0},null,1]
[null,null,null,null,null,null,null,null,null,null,null,1]
[null,null,"Preáce nakladače (h)",null,null,null,null,null,null,null,null,1,null,null,null,"Realizační výstup výzkumného projektu č. QJ1220029 pod názvemvýzkum"]
[null,null,null,null,null,null,null,null,null,null,null,1,null,null,null," - Komplexní udržitelné systémy v zemědělství „KUS“"]
[null,null,null,null,null,null,null,null,null,{"$f":"INDEX(List1!P29:P31,L24,1)*START!H24","v":0},null,1,null,null,null," „Zakládání a údržba porostů hrází rybníků s ohledem na jejich využití“,"]
[null,null,null,null,null,null,null,null,null,null,null,1,null,null,null," financovaného MZe ČR Národní agenturou pro zemědělský "]
[null,null,"Režijní náklady",null,null,null,null,null,null,null,null,1,null,null,null,"©  Doc. Ing, Jan Červinka, CSc. Ing. Jiří Pospíšil, CSc. "]
[null,null,null,null,null,null,null,null,null,null,null,1]
[null,null,null,null,null,null,null,null,null,null,null,1]
[null,null,null,"CELKOVÉ NÁKLADY NA ÚDRŽBU",null,null,null,null,null,{"$f":"J3+J5+J7+J16+J20+J24","v":0},null,1]
[null,null,null,null,null,null,null,null,null,null,null,1]
[null,null,null,null,null,null,null,null,null,null,null,1]
[null,null,null,null,null,null,null,null,null,null,null,1]
[null,null,null,null,null,null,null,null,null,null,null,1]
[null,null,null,null,null,null,null,null,null,null,null,1]
[null,null,null,null,null,null,null,null,null,null,null,1]
[null,null,null,null,null,null,null,null,null,null,null,1]
[null,null,null,null,null,null,null,null,null,null,null,1]
[null,null,null,null,null,null,null,null,null,null,null,1]
[null,null,null,null,null,null,null,null,null,null,null,1]
[null,null,null,null,null,null,null,null,null,null,null,1]
[null,null,null,null,null,null,null,null,null,null,null,1]

{"sheet":"hraze 0","index":5,"n_rows":31,"n_cols":16,"rows_kept":31,"cut":false,"hidden":true,"merged":[]}
[null,"operace 0","technika 0","jen bylinný porost 0",null,"operace 0","technika 0","bylinný porost a keře 0",null,"operace 0","technika 0","bylinný porost  a stromy 0",null,"operace 0","technika 0","bylinný porost stromy a keře 0"]
[]
[null,"sečení porostu","traktor + žací stroj rotační",0.05,null,"sečení porostu","ručně vedený žací stroj - bez sběru",1.5,null,"sečení porostu","ručně vedený žací stroj - bez sběru",1.5,null,"sečení porostu","ručně vedený žací stroj - bez sběru",1.5]
[null,"sečení porostu","ručně vedený žací stroj - bez sběru",1.5,null,"sečení porostu","křovinořez",1.8,null,"sečení porostu","křovinořez",1.8,null,"sečení porostu","křovinořez",1.8]
[null,"sečení porostu","křovinořez",1.8,null,"sečení porostu + sběr","ručně vedený žací stroj - s košem",1.8,null,"sečení porostu + sběr","ručně vedený žací stroj - s košem",1.8,null,"sečení porostu + sběr","ručně vedený žací stroj - s košem",1.8]
[null,"sečení porostu + sběr","ručně vedený žací stroj - s košem",1.8,null,"sečení porostu","traktor+mulčovač nesený",7.0000000000000007E-2,null,"sečení porostu","traktor+mulčovač nesený",7.0000000000000007E-2,null,"sečení porostu","traktor+mulčovač nesený",7.0000000000000007E-2]
[null,"sečení porostu","traktor+mulčovač nesený",7.0000000000000007E-2,null,"sečení porostu","traktor+mulčovač nesený se sběrem",0.09,null,"sečení porostu","traktor+mulčovač nesený se sběrem",0.09,null,"sečení porostu","traktor+mulčovač nesený se sběrem",0.09]
[null,"sečení porostu","traktor+mulčovač nesený se sběrem",0.09]
[]
[null,"shrnování trávy","dopravníkový shrnovač",0.04,null,"shrnování trávy","dopravníkový shrnovač",0.04,null,"shrnování trávy na hromady do 50 m","ruční nářadí",2,null,"shrnování trávy na hromady do 50 m","ruční nářadí",2]
[null,"shrnování trávy na hromady do 50 m","ruční nářadí",2,null,"shrnování trávy na hromady do 50 m","ruční nářadí",2,null,"shrnování trávy","dopravníkový shrnovač",0.04,null,"shrnování trávy","dopravníkový shrnovač",0.04]
[]
[null,"sběr trávy","traktor  +  sběrací vůz",7.0000000000000007E-2,null,"sběr trávy","traktor  +  sběrací vůz",7.0000000000000007E-2,null,"shrnování trávy nakládání ručně","ruční nářadí",2.4,null,"shrnování trávy nakládání ručně","ruční nářadí",2.5]
[null,"shrnování trávy nakládání ručně","ruční nářadí",2.2000000000000002,null,"shrnování trávy nakládání ručně","ruční nářadí",2.4,null,"sběr trávy","traktor  +  sběrací vůz",7.0000000000000007E-2,null,"sběr trávy","traktor  +  sběrací vůz",7.0000000000000007E-2]
[]
[null,"chemická likvidace porostu + přípravek","ruční postřik",2.5,null,"chemická likvidace porostu + přípravek","ruční postřik",2.5,null,"chemická likvidace porostu + přípravek","ruční postřik",2.5,null,"chemická likvidace porostu + přípravek","ruční postřik",2.5]
[]
[null,null,null,null,null,"likvidace křovin 10% plochy","křovinořez",1.5,null,"likvidace křovin 10% plochy","křovinořez","není",null,"likvidace křovin 10% plochy","křovinořez",1.5]
[null,null,null,null,null,"likvidace křovin 50% plochy","křovinořez",7.5,null,"likvidace křovin 50% plochy","křovinořez","není",null,"likvidace křovin 50% plochy","křovinořez",7.5]
[]
[null,null,null,null,null,null,null,null,null,"Kácení stromů o průměru do 20 cm (1 ks)","pila",100,null,"Kácení stromů o průměru do 20 cm (1 ks)","pila",300]
[null,null,null,null,null,null,null,null,null,"Kácení stromů o průměru do 21 cm - 50 cm (1 ks)","pila",220,null,"Kácení stromů o průměru do 21 cm - 50 cm (1 ks)","pila",550]
[null,null,null,null,null,null,null,null,null,"Kácení stromů o průměru   51- 80 cm (1 ks)","pila",1050,null,"Kácení stromů o průměru   51- 80 cm (1 ks)","pila",4200]
[null,null,null,null,null,null,null,null,null,"Kácení stromů o průměru   81- 150 cm (1 ks)","pila",1260,null,"Kácení stromů o průměru   81- 150 cm (1 ks)","pila",7350]
[null,null,null,null,null,null,null,null,null,"Kácení stromů o průměru nad 150 cm (1 ks)","pila",18000,null,"Kácení stromů o průměru nad 150 cm (1 ks)","pila",21000]
[]
[null,null,null,null,null,null,null,null,null,"Frézování pařezů o průměru do 50 cm (1 ks)","fréza na pařezy",17,null,"Frézování pařezů o průměru do 50 cm (1 ks)","fréza na pařezy",17]
[null,null,null,null,null,null,null,null,null,"Frézování pařezů o průměru   51- 150 cm (1 ks)","fréza na pařezy",20,null,"Frézování pařezů o průměru   51- 150 cm (1 ks)","fréza na pařezy",20]
[null,null,null,null,null,null,null,null,null,"Frézování pařezů o průměru  nad 150 cm (1 ks)","fréza na pařezy",30,null,"Frézování pařezů o průměru  nad 150 cm (1 ks)","fréza na pařezy",30]
[]
[null,"setí trávníku","ručně",2,null,"setí trávníku","ručně",2.5,null,"setí trávníku","ručně",2.5,null,"setí trávníku","ručně",2.5]

{"sheet":"hraze 12","index":6,"n_rows":25,"n_cols":16,"rows_kept":25,"cut":false,"hidden":true,"merged":[]}
[null,"operace 12","technika 0","jen bylinný porost 12",null,"operace 12","technika 0","bylinný porost a keře 12",null,"operace 12","technika 0","bylinný porost  a stromy 12",null,"operace 12","technika 0","bylinný porost stromy a keře12"]
[]
[null,"sečení porostu","křovinořez",2.1,null,"sečení porostu","křovinořez",2.1,null,"sečení porostu","křovinořez",2.1,null,"sečení porostu","křovinořez",2.1]
[null,"sečení porostu sběr","ručně vedený žací stroj - s košem",2.2999999999999998,null,"sečení porostu sběr","ručně vedený žací stroj - s košem",2.2999999999999998,null,"sečení porostu sběr","ručně vedený žací stroj - s košem",2.2999999999999998,null,"sečení porostu sběr","ručně vedený žací stroj - s košem",2.2999999999999998]
[null,"sečení porostu","traktor+mulčovač nesený",0.08,null,"sečení porostu","traktor+mulčovač nesený",0.09,null,"sečení porostu","traktor+mulčovač nesený",0.09,null,"sečení porostu","traktor+mulčovač nesený",0.1]
[null,"sečení porostu","traktor+ mulčovač nesený se sběrem",0.1,null,"sečení porostu","traktor+ mulčovač nesený se sběrem",0.11,null,"sečení porostu","traktor+ mulčovač nesený se sběrem",0.11,null,"sečení porostu","traktor+ mulčovač nesený se sběrem",0.13]
[]
[null,"shrnování trávy nakládání ručně","ruční nářadí",2.2000000000000002,null,"shrnování trávy nakládání ručně","ruční nářadí",2.4,null,"shrnování trávy nakládání ručně","ruční nářadí",2.4,null,"shrnování trávy nakládání ručně","ruční nářadí",2.5]
[]
[null,"chemická likvidace porostu + přípravek","ruční postřik",3.5,null,"chemická likvidace porostu + přípravek","ruční postřik",3.5,null,"chemická likvidace porostu + přípravek","ruční postřik",3.5,null,"chemická likvidace porostu + přípravek","ruční postřik",3.5]
[]
[null,null,null,null,null,"likvidace křovin 10% plochy","křovinořez",1.5,null,"shrnování trávy nakládání ručně","ruční nářadí + traktor přívěs",2.5,null,"likvidace křovin 10% plochy","křovinořez",1.5]
[null,null,null,null,null,"likvidace křovin 50% plochy","křovinořez",7.5,null,"shrnování trávy nakládání sběračem","shrnování ručně traktor  +  sběrací vůz",1.89,null,"likvidace křovin 50% plochy","křovinořez",7.5]
[]
[null,null,null,null,null,null,null,null,null,"Kácení stromů o průměru do 20 cm (1 ks)","pila",100,null,"Kácení stromů o průměru do 20 cm (1 ks)","pila",300]
[null,null,null,null,null,null,null,null,null,"Kácení stromů o průměru   21-50 cm (1 ks)","pila",220,null,"Kácení stromů o průměru   21-50 cm (1 ks)","pila",550]
[null,null,null,null,null,null,null,null,null,"Kácení stromů o průměru   51-80 cm (1 ks)","pila",1050,null,"Kácení stromů o průměru   51-80 cm (1 ks)","pila",4200]
[null,null,null,null,null,null,null,null,null,"Kácení stromů o průměru   81-150 cm (1 ks)","pila",1260,null,"Kácení stromů o průměru   81-150 cm (1 ks)","pila",7350]
[null,null,null,null,null,null,null,null,null,"Kácení stromů o průměru nad 150 cm (1 ks)","pila",1800,null,"Kácení stromů o průměru nad 150 cm (1 ks)","pila",21000]
[]
[null,null,null,null,null,null,null,null,null,"Frézování pařezů o průměru do 50 cm (1 ks)","fréza na pařezy",18,null,"Frézování pařezů o průměru do 50 cm (1 ks)","fréza na pařezy",18]
[null,null,null,null,null,null,null,null,null,"Frézování pařezů o průměru   51- 150 cm (1 ks)","fréza na pařezy",21,null,"Frézování pařezů o průměru   51- 150 cm (1 ks)","fréza na pařezy",21]
[null,null,null,null,null,null,null,null,null,"Frézování pařezů o průměru  nad 150 cm (1 ks)","fréza na pařezy",31,null,"Frézování pařezů o průměru  nad 150 cm (1 ks)","fréza na pařezy",31]
[]
[null,"setí trávníku","ruční práce",2.5,null,"setí trávníku","ruční práce",3,null,"setí trávníku","ruční práce",3,null,"setí trávníku","ruční práce",3]

{"sheet":"hraze 20","index":7,"n_rows":21,"n_cols":16,"rows_kept":21,"cut":false,"hidden":true,"merged":[]}
[null,"operace 20","technika 0","jen bylinný porost 20",null,"operace 20","technika 0","bylinný porost a keře 20",null,"operace 20","technika 0","bylinný porost  a stromy 20",null,"operace 20","technika 0","bylinný porost stromy a keře 20"]
[]
[null,"sečení porostu","ručně vedený žací stroj - bez  sběru dálk. řízený",6,null,"sečení porostu","ručně vedený žací stroj - bez  sběru dálk. řízený",8,null,"sečení porostu","ručně vedený žací stroj - bez  sběru dálk. řízený",7,null,"sečení porostu","ručně vedený žací stroj - bez  sběru dálk. řízený",8]
[null,"sečení porostu","křovinořez",2.1,null,"sečení porostu","křovinořez",2.1,null,"sečení porostu","křovinořez",2.1,null,"sečení porostu","křovinořez",2.1]
[null,"sečení porostu","ručně vedený žací stroj - s košem",2.2999999999999998,null,"sečení porostu","ručně vedený žací stroj - s košem",2.4,null,"sečení porostu","ručně vedený žací stroj - s košem",2.4,null,"sečení porostu","ručně vedený žací stroj - s košem",2.5]
[]
[null,"shrnování  trávy + nakládání ručně","ruční nářadí",2.2000000000000002,null,"shrnování  trávy + nakládání ručně","ruční nářadí",2.4,null,"shrnování  trávy + nakládání ručně","ruční nářadí",2.4,null,"shrnování  trávy + nakládání ručně","ruční nářadí",2.5]
[]
[null,"chemická likvidace porostu + přípravek","ruční postřik",3.5,null,"chemická likvidace porostu + přípravek","ruční postřik",3.5,null,"chemická likvidace porostu + přípravek","ruční postřik",3.5,null,"chemická likvidace porostu + přípravek","ruční postřik",3.5]
[]
[null,null,null,null,null,"likvidace   křovin 10% plochy","křovinořez",1.5,null," nakládání ručně","ruční nářadí + traktor přívěs",2.5,null,"likvidace   křovin 10% plochy","křovinořez",1.5]
[null,null,null,null,null,"likvidace   křovin 50% plochy","křovinořez",7.5,null," nakládání sběračem","shrnování ručně traktor  +  sběrací vůz",1.89,null,"likvidace   křovin 50% plochy","křovinořez",7.5]
[]
[null,null,null,null,null,null,null,null,null,"Kácení stromů o průměru do 20 cm (1 ks)","pila",190,null,"Kácení stromů o průměru do 20 cm (1 ks)","pila",190]
[null,null,null,null,null,null,null,null,null,"Kácení stromů o průměru   21-50 cm (1 ks)","pila",1000,null,"Kácení stromů o průměru   21-50 cm (1 ks)","pila",1000]
[null,null,null,null,null,null,null,null,null,"Kácení stromů o průměru   51-80 cm (1 ks)","pila",1050,null,"Kácení stromů o průměru   51-80 cm (1 ks)","pila",4200]
[null,null,null,null,null,null,null,null,null,"Kácení stromů o průměru   81-150 cm (1 ks)","pila",1260,null,"Kácení stromů o průměru   81-150 cm (1 ks)","pila",7350]
[null,null,null,null,null,null,null,null,null,"Kácení stromů o průměru nad 150 cm (1 ks)","pila",18000,null,"Kácení stromů o průměru nad 150 cm (1 ks)","pila",21000]
[]
[]
[null,"setí trávníku","ruční práce",350,null,"setí trávníku","ruční práce",400,null,"setí trávníku","ruční práce",400,null,"setí trávníku","ruční práce",400]

{"sheet":"List1","index":8,"n_rows":35,"n_cols":16,"rows_kept":35,"cut":false,"hidden":true,"merged":[[3,4,4,4],[3,5,4,5],[3,6,4,6]]}
[]
[]
[]
[null,null,null,null,"Popis","MJ","min náklad","max.",null,null,null,"jedn.","[l.měr.jedn.-1]","[h.měr.jedn.-1]","[Kč.měr.jedn.-1]","[Kč.měr.jedn.-1]"]
[null,null,null,null,null,null,null,"náklad"]
[null,null,null,null,null,null,"Kč","Kč",null,null,"Práce jednonápravového malotraktoru","h",0.5,1,156,170]
[null,null,null,null,"Kosení ve vegetačním období travního porostu řídkého   ","m2",0.42,0.60899999999999999,null,null,"Práce dvounápravových malotraktorů do 15 kW","h",2.4,1,162,230]
[null,null,null,null,"Kosení ve vegetačním období travního porostu středně hustého   ","m2",0.62,0.89800000000000002,null,null,"Práce dvounápravových malotraktorů nad 15 kW","h",3.5,1,240,340]
[null,null,null,null,"Kosení ve vegetačním období travního porostu hustého   ","m2",0.87,1.26,null,null,"Práce traktorů o výkonu motoru 30 - 39 kW","h",5.5,1,350,500]
[null,null,null,null,"Kosení ve vegetačním období divokého porostu řídkého   ","m2",0.61,0.877,null,null,"Práce traktorů o výkonu motoru 40-49 kW","h",7,1,400,600]
[null,null,null,null,"Kosení ve vegetačním období divokého porostu středně hustého   ","m2",0.83,1.21,null,null,"Práce traktorů o výkonu motoru 50-59 kW","h",8.5,1,450,700]
[null,null,null,null,"Kosení ve vegetačním období divokého porostu hustého   ","m2",1.19,1.73,null,null,"Práce traktorů o výkonu motoru 60-69 kW","h",10,1,500,800]
[null,null,null,null,"Kosení ve vegetačním období vodního rostlinstva na břehu řídkého   ","m2",1.1100000000000001,1.61,null,null,"Práce traktorů o výkonu motoru 70-79 kW","h",11.5,1,550,900]
[null,null,null,null,"Kosení ve vegetačním období vodního rostlinstva na břehu středně hustého   ","m2",1.66,2.4,null,null,"Práce traktorů o výkonu motoru 80-99 kW","h",14,1,600,1000]
[null,null,null,null,"Kosení ve vegetačním období vodního rostlinstva na břehu hustého   ","m2",2.33,3.38,null,null,"Práce traktorů o výkonu motoru 100-119 kW","h",16,1,700,1150]
[null,null,null,null,"Kosení ve vegetačním období vodního rostlinstva pod vodou řídkého hl do 300 mm   ","m2",1.31,1.9,null,null,"Práce traktorů o výkonu motoru 120 - 180 kW","h",21,1,750,1340]
[null,null,null,null,"Kosení ve vegetačním období vodního rostlinstva pod vodou řídkého hl přes 300 mm   ","m2",0.62,0.89500000000000002,null,null,"Práce traktorů o výkonu motoru nad 180 kW","h",27,1,1050,1810]
[null,null,null,null,"Kosení ve vegetačním období vodního rostlinstva pod vodou středně hustého hl do 300 mm   ","m2",2.04,2.96]
[null,null,null,null,"Kosení ve vegetačním období vodního rostlinstva pod vodou středně hustého hl přes 300 mm   ","m2",0.73,1.06]
[null,null,null,null,"Kosení ve vegetačním období vodního rostlinstva pod vodou hustého hl do 300 mm   ","m2",3,4.3499999999999996]
[null,null,null,null,"Kosení ve vegetačním období vodního rostlinstva pod vodou hustého hl přes 300 mm   ","m2",1.2,1.74]
[null,null,null,null,"Kosení po vegetačním období divokého porostu řídkého   ","m2",0.63,0.91800000000000004,null,null,"Doprava technologická traktorovou soupravou (do 5 t)","km",0.46,0.06,22.9,35.700000000000003]
[null,null,null,null,"Kosení po vegetačním období divokého porostu středně hustého   ","m2",0.88,1.27,null,null,"Doprava technologická traktorovou soupravou (nad 5 t)","km",0.53,0.06,31.9,46.7]
[null,null,null,null,"Kosení po vegetačním období divokého porostu hustého   ","m2",1.24,1.8,null,null,"Doprava technologická trakt. návěsem (nad 10 t)","km",0.6,0.05,49.9,66.7]
[null,null,null,null,"Kosení po vegetačním období vodního rostlinstva na břehu řídkého   ","m2",1.7,2.4700000000000002,null,null,"Doprava technologická nákladním automobilem (užitečná hmotnost do 8 t)","km",0.45,0.02,24.2,36.799999999999997]
[null,null,null,null,"Kosení po vegetačním období vodního rostlinstva na břehu středně hustého   ","m2",2.37,3.43,null,null,"Doprava technologická nákladním automobilem (užitečná hmotnost nad 8 t)","km",0.55000000000000004,0.02,35.32,50.7]
[null,null,null,null,"Kosení po vegetačním období vodního rostlinstva na břehu hustého   ","m2",3.09,4.4800000000000004]
[null,null,null,null,"Odstranění ruderálního porostu do 100 m2 naložení a odvoz do 20 km ","m2",6.84,9.91]
[null,null,null,null,"Odstranění ruderálního porostu do 500 m2 naložení a odvoz do 20 km ","m2",5.8,8.41]
[null,null,null,null,"Odstranění ruderálního porostu přes 500 m2 naložení a odvoz do 20 km ","m2",4.13,5.99,null,null,"Nakládání čelním kolovým nakladačem (řada UN)","h",8,1,1022,1250]
[null,null,null,null,"Odstranění stařiny do 100 m2 s naložením a odvozem do 20 km ","m2",5.93,8.6,null,null,"Nakládání jeřábovým nakladačem","h",8,1,722,945]
[null,null,null,null,"Pokosení trávníku parterového plochy do 1000 m2 s odvozem do 20 km     ","m2",1.44,2.09]
[null,null,null,null,"Pokosení trávníku lučního plochy do 1000 m2 s odvozem do 20 km     ","m2",2.11,3.06]
[null,null,null,null,"Pokosení trávníku lučního plochy do 10000 m2 s odvozem do 20 km     ","m2",1.31,1.9]
[null,null,null,null,"Pokosení trávníku lučního plochy přes 10000 m2 s odvozem do 20 km     ","m2",0.86,1.25]